bitfinex-derivatives/quotes_ETHF0:USTF0_20250810
["timestamp","ask_amount","ask_price","bid_price","bid_amount"]
[1754813343826,3.2078,4174.7,4174.6,1.4397]
[1754813344024,0.5071,4175.3,4174.6,1.4397]
[1754813344220,0.47898,4175.2,4174.7,0.5277]
[1754813344430,0.47898,4175.2,4174.4,0.5277]
[1754813344431,0.47905,4174.6,4174.4,0.5277]
[1754813344629,1.19734,4175.6,4174.0,0.5277]
[1754813344630,3.2078,4174.8,4174.0,0.5277]
[1754813344931,0.8988,4174.4,4174.1,0.5277]
[1754813345327,1.444,4174.5,4174.0,0.5094]
[1754813345528,0.9389,4174.4,4173.7,3.2078]
[1754813345831,3.2078,4174.8,4173.7,3.2078]
[1754813345832,1.4403,4174.7,4174.1,3.66444267]
[1754813346032,1.91934,4174.7,4174.1,0.5094]
[1754813346236,1.4403,4174.5,4174.1,0.5094]
[1754813346428,0.9389,4174.4,4174.1,0.5094]
[1754813346629,0.5014,4174.4,4174.1,0.5094]
[1754813346824,0.5014,4174.4,4173.9,0.3893]
[1754813346825,0.3966,4174.2,4173.9,0.3893]
[1754813347030,0.9389,4174.1,4174.0,0.5094]
[1754813348135,3.68689,4174.3,4173.7,3.7172]
[1754813348332,0.47911,4174.1,4173.7,3.7172]
[1754813348635,0.9389,4174.2,4173.9,0.934]
[1754813348837,0.9389,4174.2,4174.0,0.5447]
[1754813349025,0.9389,4174.2,4173.7,3.68695]
[1754813349026,0.5423,4174.2,4174.1,1.4434]
[1754813349230,1.41801,4174.1,4173.7,3.2078]
[1754813349428,0.47911,4174.1,4173.8,0.5094]
[1754813349630,1.4403,4173.8,4173.7,3.2078]
[1754813350036,0.9389,4173.5,4173.3,0.5094]
[1754813350239,0.47922,4173.1,4172.9,3.7172]
[1754813350531,0.47922,4173.2,4172.6,0.934]
[1754813350738,1.4403,4172.8,4172.5,0.5094]
[1754813351033,0.5014,4172.8,4172.5,0.5094]
[1754813351232,0.9389,4172.6,4172.5,0.5094]
[1754813351431,0.5014,4172.6,4172.2,0.5094]
[1754813351639,0.9383,4172.4,4172.3,0.5094]
[1754813351938,0.98069,4172.6,4172.1,0.8987]
[1754813352132,0.9383,4172.2,4172.1,0.8987]
[1754813352532,0.9383,4172.5,4172.2,0.5447]
[1754813352733,0.396,4172.3,4172.2,0.5094]
[1754813352934,0.396,4172.1,4172.0,0.5094]
[1754813353739,0.47939,4171.7,4171.3,3.2078]
[1754813353932,0.47938,4171.8,4171.1,0.3893]
[1754813354132,0.396,4171.7,4171.0,0.47946]
[1754813354332,0.5423,4171.6,4171.4,0.934]
[1754813354526,0.396,4172.0,4171.5,1.4434]
[1754813354733,0.9383,4172.0,4171.6,0.5094]
[1754813355033,0.396,4172.0,4171.8,0.5094]
[1754813355228,0.9383,4171.9,4171.3,1.4434]
[1754813355433,0.5423,4171.6,4170.9,0.5094]
[1754813355628,0.47941,4171.5,4170.9,0.3893]
[1754813355834,1.02181,4170.7,4170.2,3.2078]
[1754813356033,0.396,4170.6,4170.4,0.5094]
[1754813356235,0.9383,4170.5,4170.4,0.5094]
[1754813357133,0.9383,4170.5,4170.4,1.4434]
[1754813357344,1.4359,4170.5,4169.7,3.2078]
[1754813357533,0.9383,4170.4,4169.7,3.7172]
[1754813357728,3.2078,4170.7,4170.3,0.934]
[1754813357938,3.2078,4170.7,4170.0,1.4434]
[1754813358131,3.2078,4170.7,4170.4,1.4434]
[1754813358337,3.2078,4170.7,4170.1,1.4434]
[1754813358538,3.2078,4170.7,4170.2,1.92295]
[1754813358733,3.2078,4170.7,4170.5,0.47951]
[1754813358934,3.2078,4171.2,4170.7,0.5094]
[1754813359143,0.9383,4171.1,4170.9,0.5094]
[1754813359442,3.2078,4171.2,4170.8,0.47948]
[1754813359638,0.5423,4171.6,4171.0,4.1418]
[1754813359839,0.5423,4171.6,4171.1,0.5094]
[1754813360134,0.5423,4171.6,4171.3,1.4434]
[1754813360338,0.5423,4171.6,4170.8,0.47948]
[1754813360339,0.396,4171.6,4171.5,0.5094]
[1754813361042,3.2078,4172.0,4171.5,0.5094]
[1754813361256,3.2078,4172.0,4170.3,1.19884]
[1754813361257,0.396,4172.0,4171.2,3.2078]
[1754813361430,0.5423,4172.4,4171.8,0.47937]
[1754813361633,0.5423,4172.4,4171.2,3.2078]
[1754813361634,3.2078,4172.5,4172.1,1.4434]
[1754813361931,0.4793,4172.5,4172.3,0.5094]
[1754813362141,1.4176,4172.4,4171.7,0.5094]
[1754813362338,0.8753,4172.4,4171.7,3.56292517]
[1754813362538,0.9383,4171.9,4171.8,0.5094]
[1754813362744,0.9383,4171.9,4171.8,1.4434]
[1754813362942,1.4359,4171.8,4171.7,3.06775323]
[1754813363137,1.4359,4171.7,4171.4,0.5094]
[1754813363338,4.1461,4171.5,4171.0,0.5094]
[1754813363539,3.2078,4171.5,4171.0,0.5094]
[1754813363835,0.9383,4171.1,4170.7,0.5447]
[1754813364032,3.7054,4171.5,4170.8,0.5094]
[1754813364033,0.9383,4170.9,4170.8,0.5094]
[1754813365245,0.5423,4170.9,4170.8,0.8987]
[1754813365941,0.9383,4171.3,4170.8,1.4434]
[1754813366141,0.5423,4170.9,4170.6,0.47951]
[1754813366344,3.2078,4171.5,4170.8,0.8987]
[1754813366644,0.9383,4171.2,4170.8,0.8987]
[1754813366840,0.9383,4171.2,4170.6,3.6873]
[1754813367035,0.47943,4171.3,4170.7,0.934]
[1754813367238,0.9383,4171.0,4170.7,4.1138593]
[1754813367439,0.396,4171.0,4170.9,0.5094]
[1754813367638,3.6038,4171.5,4170.9,0.5094]
[1754813368041,0.47942,4171.4,4170.9,0.5094]
[1754813368339,4.1461,4171.5,4170.9,0.5094]
[1754813368340,3.7501,4171.5,4170.9,0.5094]
[1754813368542,3.2078,4171.5,4171.0,1.4434]
[1754813368743,3.2078,4171.5,4170.8,0.47948]
[1754813368945,3.2078,4171.5,4170.8,3.04501449]
[1754813369241,0.47944,4171.2,4171.0,0.5094]
[1754813369546,0.9383,4171.1,4171.0,0.5094]
[1754813369752,0.47944,4171.2,4170.7,0.5094]
[1754813370045,0.4976,4170.9,4170.7,0.5094]
[1754813370243,0.4795,4170.7,4170.2,0.5094]
[1754813370448,3.68729,4170.8,4170.1,3.7525]
[1754813370645,0.396,4170.5,4170.2,0.3893]
[1754813370846,0.87552,4170.5,4170.4,0.5094]
[1754813371248,0.9383,4170.5,4170.4,0.5094]
[1754813372147,0.396,4170.5,4169.7,0.5094]
[1754813372451,3.2078,4170.3,4169.8,1.4434]
[1754813372754,3.2078,4170.3,4170.2,0.934]
[1754813373044,3.2078,4170.3,4170.2,1.4434]
[1754813373446,3.7054,4171.2,4170.4,0.47953]
[1754813373649,0.396,4171.1,4170.5,1.4434]
[1754813373946,3.2078,4171.2,4171.1,1.4434]
[1754813374145,3.2078,4171.7,4170.9,1.92287]
[1754813374348,3.2078,4171.7,4171.0,0.5094]
[1754813374552,0.47939,4171.6,4171.0,3.66607413]
[1754813374849,0.47942,4171.4,4171.1,0.5094]
[1754813375051,0.9383,4171.3,4170.8,3.7172]
[1754813375359,1.36666,4171.0,4170.9,0.5048]
[1754813375650,0.8872,4171.0,4170.9,0.5048]
[1754813375847,3.2078,4171.2,4170.3,1.02424]
[1754813376048,0.3971,4170.9,4170.4,1.4055]
[1754813376254,0.47951,4170.6,4170.2,0.5048]
[1754813376546,0.8872,4170.3,4170.2,0.5048]
[1754813376746,0.8872,4170.3,4169.8,0.5048]
[1754813376947,0.47955,4170.2,4169.8,0.5048]
[1754813377144,0.96205,4170.2,4169.8,0.5048]
[1754813377341,0.8872,4169.9,4169.8,0.5048]
[1754813377540,0.8872,4169.9,4169.7,3.2078]
[1754813377745,0.8872,4169.9,4169.4,0.5048]
[1754813377954,0.8872,4169.9,4169.3,0.8882]
[1754813378350,0.8872,4169.9,4169.3,1.36785]
[1754813378548,0.8872,4169.9,4169.3,0.8882]
[1754813378846,3.2078,4170.2,4169.4,3.11938023]
[1754813379042,3.2078,4170.2,4169.6,1.4055]
[1754813379249,3.2078,4170.2,4169.8,0.4796]
[1754813379449,3.2078,4170.2,4170.1,0.3834]
[1754813379744,3.2078,4170.7,4170.3,1.4055]
[1754813379950,3.2078,4170.7,4170.2,1.4055]
[1754813380153,3.2078,4170.7,4170.6,1.4055]
[1754813380549,3.2078,4170.7,4170.6,0.8882]
[1754813380745,0.8872,4170.6,4169.6,4.1085]
[1754813381057,0.8872,4170.6,4169.7,0.5048]
[1754813381350,0.4901,4170.1,4169.8,0.3834]
[1754813381548,1.36677,4170.1,4170.0,0.5048]
[1754813381745,0.8872,4170.1,4170.0,0.5048]
[1754813382145,0.47958,4170.0,4169.6,3.2078]
[1754813382346,0.8872,4169.9,4169.8,0.5048]
[1754813382748,0.8872,4169.9,4169.3,1.0221]
[1754813383145,0.8872,4169.9,4169.1,0.3834]
[1754813383146,0.4796,4169.8,4169.4,3.55828931]
[1754813383451,0.8872,4169.9,4169.6,0.9007]
[1754813383756,0.8872,4169.9,4169.8,0.3834]
[1754813383946,0.8872,4169.9,4169.8,0.8882]
[1754813384146,0.4901,4169.9,4169.8,1.4055]
[1754813384343,0.8872,4169.9,4169.8,1.0221]
[1754813384747,4.57456,4170.2,4169.4,0.3834]
[1754813384943,4.57456,4170.2,4169.6,0.8882]
[1754813385743,4.57456,4170.2,4169.4,0.47965]
[1754813385948,0.47957,4170.1,4169.5,1.4055]
[1754813386254,0.96208,4170.0,4169.6,0.5048]
[1754813386453,0.8872,4169.7,4169.6,0.5048]
[1754813386749,0.8872,4169.7,4169.6,1.4055]
[1754813386750,0.4901,4169.7,4169.6,1.4055]
[1754813386949,0.47957,4170.1,4169.5,1.4055]
[1754813387147,0.47957,4170.1,4169.6,0.8882]
[1754813387445,0.47957,4170.1,4169.5,0.3834]
[1754813387653,3.2078,4170.2,4170.1,0.5048]
[1754813387948,3.2078,4170.7,4170.2,0.3834]
[1754813388155,3.2078,4170.7,4170.6,1.4055]
[1754813388754,3.6979,4170.7,4170.6,0.8882]
[1754813389349,3.2078,4170.7,4170.6,1.4055]
[1754813391958,3.2078,4170.7,4170.6,1.88501]
[1754813392159,3.2078,4170.7,4170.6,1.4055]
[1754813392656,3.2078,4171.4,4171.3,1.4055]
[1754813393557,0.8872,4172.2,4171.9,1.4055]
[1754813393753,3.2078,4172.4,4171.4,0.47941]
[1754813393950,3.2078,4172.4,4171.3,6.395045]
[1754813393951,3.2078,4172.4,4172.2,0.8882]
[1754813394158,3.6979,4172.4,4172.3,0.8882]
[1754813394353,3.2078,4172.4,4172.3,1.4055]
[1754813394553,0.8872,4172.3,4171.5,1.0221]
[1754813394954,0.8872,4172.3,4171.7,0.47938]
[1754813395151,0.8872,4172.3,4171.4,0.8882]
[1754813395459,0.8872,4172.3,4172.0,1.4055]
[1754813395656,0.8872,4172.3,4172.2,0.8882]
[1754813396049,1.36651,4172.3,4172.2,0.5048]
[1754813396252,0.4901,4172.2,4171.7,0.47938]
[1754813396454,0.4901,4172.2,4171.6,0.47939]
[1754813396665,0.47935,4172.0,4171.8,0.5048]
[1754813396963,0.8872,4171.9,4171.8,0.5048]
[1754813397362,4.5775,4171.9,4171.3,3.2078]
[1754813397663,1.36651,4172.3,4171.5,0.9007]
[1754813397860,0.8872,4171.9,4171.6,0.3834]
[1754813398059,1.3697,4171.8,4171.3,3.2078]
[1754813398259,0.8872,4171.8,4171.3,3.2078]
[1754813398564,0.47935,4172.0,4171.9,0.5048]
[1754813398760,1.35895,4172.0,4171.9,0.5048]
[1754813398958,0.8796,4172.0,4171.9,0.5048]
[1754813399157,0.8872,4172.0,4171.9,0.5048]
[1754813400068,0.47936,4171.9,4171.5,0.5048]
[1754813400262,3.2078,4171.9,4171.7,0.3834]
[1754813400465,0.3971,4173.1,4172.2,0.47932]
[1754813400665,3.2078,4173.0,4172.9,1.4055]
[1754813401055,4.095,4173.0,4172.9,1.4055]
[1754813401268,4.095,4173.0,4172.9,0.5048]
[1754813401464,3.2078,4173.0,4172.9,1.4055]
[1754813401663,3.6979,4173.8,4173.0,0.47923]
[1754813401867,4.17705,4173.8,4173.1,1.4055]
[1754813402264,3.6979,4173.8,4173.1,1.4055]
[1754813402462,0.47923,4173.1,4172.5,3.2078]
[1754813402655,0.4901,4172.9,4172.6,0.8882]
[1754813402862,0.3971,4173.4,4172.8,0.3834]
[1754813403157,3.2078,4174.2,4173.6,0.47916]
[1754813403464,3.6979,4174.2,4173.5,0.47917]
[1754813403655,0.3971,4174.5,4174.0,0.5048]
[1754813403856,0.8872,4174.5,4174.2,1.4055]
[1754813404071,3.68685,4174.7,4173.8,4.6133]
[1754813404263,3.68685,4174.7,4173.9,1.4055]
[1754813404461,0.8872,4174.6,4174.0,0.5048]
[1754813404661,0.47906,4174.5,4174.0,0.5048]
[1754813404860,0.8872,4174.6,4174.0,0.5048]
[1754813405665,0.5216,4174.5,4174.3,1.3867]
[1754813405866,1.00057,4175.3,4174.4,0.5019]
[1754813406067,1.00057,4175.3,4174.5,0.4072]
[1754813406271,3.2078,4175.9,4175.0,0.5019]
[1754813406565,3.2078,4175.9,4175.2,0.5019]
[1754813406566,4.20831,4175.9,4175.2,0.5019]
[1754813406866,3.7294,4175.9,4175.2,0.5019]
[1754813407167,3.7294,4175.9,4175.3,0.4072]
[1754813407364,3.2078,4175.9,4175.2,1.3867]
[1754813407560,3.2078,4175.9,4175.4,3.56324136]
[1754813407762,3.2078,4176.5,4176.0,0.47888]
[1754813407960,3.2078,4176.5,4176.4,1.3867]
[1754813408264,3.2078,4177.1,4176.5,1.3867]
[1754813408466,0.3964,4177.3,4176.6,0.4072]
[1754813408764,0.3964,4177.3,4176.7,0.5019]
[1754813409163,0.5216,4177.4,4176.7,0.5019]
[1754813409364,3.2078,4177.6,4176.9,0.8848]
[1754813409663,0.5216,4177.0,4176.2,3.2078]
[1754813409866,0.918,4175.9,4175.7,3.2078]
[1754813410065,3.2078,4176.5,4175.7,4.1169]
[1754813410066,0.3964,4176.1,4175.7,4.1169]
[1754813410266,0.5216,4176.4,4175.8,0.9091]
[1754813410766,0.5216,4176.4,4176.0,1.3867]
[1754813411068,0.5216,4176.4,4176.1,0.8848]
[1754813411268,0.3964,4176.4,4176.3,0.5019]
[1754813411662,0.918,4176.4,4175.8,0.5019]
[1754813411972,3.2078,4176.6,4176.0,1.3867]
[1754813412166,3.2078,4176.6,4176.1,0.5019]
[1754813412366,1.39684,4176.4,4176.3,0.5019]
[1754813412669,0.918,4176.4,4176.3,0.5019]
[1754813413660,3.2078,4176.6,4176.3,0.8848]
[1754813413860,4.20813,4177.4,4176.6,0.9795]
[1754813414066,4.20813,4177.4,4176.5,0.47883]
[1754813414067,0.47876,4177.1,4176.5,3.2078]
[1754813414371,0.918,4177.0,4176.7,3.65589093]
[1754813414572,3.2078,4177.4,4176.6,3.65711093]
[1754813414763,3.2078,4177.4,4176.5,3.2078]
[1754813414764,3.2078,4177.4,4176.9,1.3867]
[1754813414964,3.2078,4177.4,4177.1,0.9091]
[1754813415160,3.2078,4177.4,4177.0,3.58187841]
[1754813415373,3.2078,4177.4,4177.3,1.3867]
[1754813415668,3.2078,4177.4,4177.3,4.56293564]
[1754813417466,3.2078,4177.9,4177.3,7.77073564]
[1754813417774,3.68647,4177.9,4177.3,6.38403564]
[1754813418173,3.68647,4177.9,4177.8,0.5019]
[1754813418471,3.2078,4177.9,4177.8,1.3867]
[1754813418776,3.2078,4177.9,4177.8,4.45617727]
[1754813419175,3.1578,4177.9,4177.8,4.45617727]
[1754813421367,3.6794,4177.9,4177.8,4.45617727]
[1754813421567,3.1578,4177.9,4177.8,4.45617727]
[1754813422768,3.6794,4177.9,4177.8,4.45617727]
[1754813423074,3.1578,4177.9,4177.8,4.45617727]
[1754813423278,4.0758,4177.9,4177.8,3.57137727]
[1754813423774,3.1578,4177.9,4177.8,4.45617727]
[1754813425970,0.4787,4177.7,4177.4,0.8848]
[1754813426271,0.9182,4177.6,4177.5,0.5019]
[1754813426767,3.1578,4177.9,4177.5,0.4776]
[1754813426977,3.1578,4177.9,4177.8,1.3867]
[1754813427373,3.1578,4177.9,4177.8,4.56832446]
[1754813427974,3.7294,4178.4,4177.8,4.56832446]
[1754813428175,0.9164,4178.3,4178.2,0.5019]
[1754813428378,3.2078,4178.4,4178.2,0.5019]
[1754813428579,3.2078,4178.4,4178.3,0.5019]
[1754813429078,4.1242,4178.4,4178.3,0.5019]
[1754813429275,3.79225293,4178.4,4178.3,1.3867]
[1754813429479,3.2078,4178.4,4178.3,1.3867]
[1754813429781,3.2078,4178.4,4178.3,4.54389566]
[1754813430380,0.58445293,4179.1,4179.0,1.86525]
[1754813430582,4.1412,4179.4,4178.8,3.2078]
[1754813430777,3.2078,4179.4,4179.3,1.86521]
[1754813430976,4.1412,4179.9,4179.4,0.5019]
[1754813431180,3.2078,4179.9,4179.6,0.47848]
[1754813431477,3.2078,4180.6,4179.9,0.47844]
[1754813431677,0.47838,4180.5,4179.8,1.86516]
[1754813431878,0.9334,4180.1,4180.0,3.09789282]
[1754813432080,0.9334,4179.6,4179.4,0.5019]
[1754813432380,1.41189,4179.5,4179.4,0.5019]
[1754813432579,0.9334,4179.5,4179.4,1.3867]
[1754813432780,0.47847,4179.7,4179.4,0.8848]
[1754813432971,0.9334,4179.7,4179.3,3.2078]
[1754813433176,3.6581,4180.1,4179.6,1.3867]
[1754813433177,1.41184,4180.0,4179.6,1.3867]
[1754813433378,1.41184,4180.0,4179.7,0.8848]
[1754813433581,0.5216,4179.9,4179.7,0.8848]
[1754813434079,1.46695904,4180.0,4179.8,0.4776]
[1754813434285,1.41184,4180.0,4179.9,0.5019]
[1754813434476,3.2078,4180.1,4179.3,3.2078]
[1754813434477,1.41189,4179.5,4179.3,3.2078]
[1754813434674,0.9334,4178.8,4178.3,0.5019]
[1754813434881,1.3837,4179.0,4178.2,3.2078]
[1754813435076,0.4503,4178.9,4178.2,3.2078]
[1754813435282,0.9334,4178.4,4178.3,1.4292]
[1754813436082,0.47862,4178.4,4178.2,3.2078]
[1754813436289,0.47864,4178.2,4177.5,1.0245]
[1754813436488,1.89197911,4178.3,4177.5,0.5097]
[1754813436680,0.57697911,4178.3,4177.8,1.4421]
[1754813436877,3.2078,4178.4,4177.7,3.2078]
[1754813437078,0.8659,4178.3,4178.0,0.5148]
[1754813437280,0.8659,4178.2,4178.1,0.5148]
[1754813437585,0.8659,4178.2,4178.1,3.56652434]
[1754813437780,0.8659,4178.7,4178.1,0.5148]
[1754813437975,0.57697911,4178.8,4178.1,0.5148]
[1754813437976,1.3445,4178.5,4178.3,0.9324]
[1754813438175,0.92773,4178.3,4178.1,3.12605429]
[1754813438380,1.05554911,4178.8,4178.4,0.5097]
[1754813438581,0.47857,4178.8,4178.5,0.9273]
[1754813438891,3.2078,4178.9,4178.6,0.47859]
[1754813439090,0.8659,4178.7,4178.6,0.5148]
[1754813439780,0.8659,4178.7,4178.6,1.4421]
[1754813439988,0.57697911,4178.8,4178.6,1.4421]
[1754813440184,0.8659,4178.8,4178.5,1.4421]
[1754813440489,0.8659,4178.9,4178.6,0.5148]
[1754813440783,0.8659,4178.7,4178.6,0.5148]
[1754813441789,0.8659,4178.2,4178.1,0.5148]
[1754813442187,0.8659,4178.2,4178.1,3.630057]
[1754813442386,0.4786,4178.6,4178.1,1.4421]
[1754813442586,0.4786,4178.6,4178.0,0.47866]
[1754813442587,0.8659,4178.5,4178.0,1.4421]
[1754813442781,0.8659,4178.5,4177.9,3.68647]
[1754813442982,1.04564113,4178.8,4178.5,0.4176]
[1754813443284,0.47857,4178.8,4178.7,0.5148]
[1754813443490,0.47857,4178.8,4178.1,0.9273]
[1754813443692,0.47859,4178.6,4178.4,0.5148]
[1754813443887,0.4491,4178.7,4178.1,0.9273]
[1754813444091,1.34451,4178.5,4178.3,0.9273]
[1754813444387,0.8659,4178.4,4178.3,4.07222614]
[1754813444588,0.8659,4178.4,4178.3,1.4421]
[1754813444986,0.56707113,4178.8,4178.4,0.47862]
[1754813445288,0.47859,4178.7,4178.2,3.11147069]
[1754813445486,0.47859,4178.7,4178.4,0.9273]
[1754813445791,4.0737,4178.9,4178.4,0.9273]
[1754813445991,0.8659,4178.8,4178.6,0.9273]
[1754813446186,0.3859,4178.8,4178.7,0.5148]
[1754813446687,1.3445,4178.5,4178.4,0.5148]
[1754813446880,0.8659,4178.5,4178.4,0.5148]
[1754813447287,0.8659,4178.3,4178.1,0.5148]
[1754813447587,0.8659,4178.2,4178.1,0.4176]
[1754813447788,0.8659,4178.2,4178.1,0.9273]
[1754813447982,0.8659,4178.2,4178.1,4.03906407]
[1754813448180,0.8659,4178.2,4178.1,5.03251407]
[1754813448484,1.315,4178.2,4178.1,3.11176407]
[1754813448688,1.315,4178.0,4177.9,3.2078]
[1754813448894,0.8659,4178.0,4177.9,3.7226]
[1754813449085,0.8659,4178.0,4177.9,0.5148]
[1754813449783,1.315,4178.0,4177.9,0.5148]
[1754813449986,0.47865,4178.1,4177.5,0.5148]
[1754813449987,0.8659,4177.7,4177.5,0.5148]
[1754813450283,0.4491,4177.8,4177.2,0.5148]
[1754813450284,1.34464,4177.3,4177.2,0.5148]
[1754813450484,0.47876,4177.2,4177.0,0.5148]
[1754813450791,0.8659,4177.1,4177.0,0.5148]
[1754813451089,1.34472,4176.6,4176.5,0.5148]
[1754813451293,0.8659,4176.6,4176.5,0.5148]
[1754813451491,1.34469,4176.9,4176.8,0.5148]
[1754813451786,1.91172113,4177.3,4177.2,0.5148]
[1754813451987,1.34468,4177.0,4176.8,3.08225078]
[1754813452290,0.8659,4177.1,4176.4,3.2078]
[1754813452486,0.47875,4177.2,4177.1,0.47876]
[1754813452687,0.47875,4177.3,4177.1,0.47876]
[1754813452887,0.47875,4177.3,4177.2,1.4421]
[1754813453088,3.2078,4177.4,4177.3,0.47874]
[1754813453287,3.2078,4177.4,4177.3,1.92084]
[1754813453588,3.2078,4177.4,4177.3,5.01801745]
[1754813454389,2.6854,4177.4,4177.3,5.01801745]
[1754813454594,1.67747955,4179.5,4177.5,1.4168]
[1754813454595,0.56160749,4178.6,4177.5,1.4168]
[1754813454792,0.4765,4178.6,4178.5,4.5884]
[1754813455287,0.48,4178.9,4178.8,0.47857]
[1754813455493,0.9565,4178.9,4178.8,0.89617]
[1754813455794,0.4765,4178.9,4178.8,1.38057]
[1754813455993,0.4765,4178.9,4178.8,1.89537]
[1754813457295,0.9565,4179.2,4179.0,0.4844]
[1754813457496,0.9565,4179.2,4178.8,0.4176]
[1754813457497,0.4765,4179.6,4179.1,3.2078]
[1754813457694,0.4765,4179.6,4179.4,0.4176]
[1754813457695,0.47849,4179.5,4179.4,0.4176]
[1754813457889,1.43499,4179.5,4179.4,0.4176]
[1754813458090,1.82089,4179.5,4179.4,0.4176]
[1754813458294,0.9565,4179.4,4178.9,3.2078]
[1754813458594,0.14468933,4180.0,4179.1,0.4176]
[1754813458896,1.3424,4179.1,4179.0,3.2078]
[1754813459087,1.82094,4179.1,4179.0,3.2078]
[1754813459794,1.3424,4179.1,4179.0,3.2078]
[1754813460985,0.47852,4179.3,4178.5,0.4786]
[1754813461186,1.3424,4178.9,4178.7,0.4176]
[1754813461385,1.3424,4178.9,4178.7,0.89617]
[1754813461386,0.9565,4178.8,4178.7,0.89617]
[1754813462294,0.47851,4179.4,4179.0,0.47854]
[1754813462495,0.47853,4179.2,4179.0,3.2078]
[1754813462692,0.9565,4179.1,4179.0,3.6254]
[1754813463498,1.3424,4179.1,4179.0,3.2078]
[1754813464796,0.47858,4178.8,4178.3,3.2078]
[1754813464991,1.3424,4179.1,4178.3,3.2078]
[1754813464992,3.2078,4179.2,4178.5,0.4786]
[1754813465189,3.2078,4179.2,4178.5,3.52418066]
[1754813465190,0.3859,4179.1,4178.5,3.52418066]
[1754813465400,0.8856,4178.9,4178.6,0.4154]
[1754813465594,1.3726,4178.7,4178.6,0.4154]
[1754813466300,0.47855,4179.0,4178.6,0.47859]
[1754813466496,0.4058,4178.9,4178.6,0.47859]
[1754813466692,0.47854,4179.1,4178.6,0.47859]
[1754813466693,0.14482094,4179.1,4178.6,0.47859]
[1754813466999,1.3726,4178.7,4178.6,0.89399]
[1754813467201,3.2078,4179.2,4179.0,0.89395]
[1754813467394,0.9668,4179.1,4179.0,1.37115]
[1754813467690,0.487,4179.1,4179.0,1.4043]
[1754813467893,0.9668,4179.1,4179.0,0.8926]
[1754813468200,1.3726,4179.1,4179.0,0.8926]
[1754813468592,0.9668,4179.1,4179.0,0.8926]
[1754813468796,0.8856,4179.5,4179.0,4.6121]
[1754813468988,1.3726,4179.5,4179.4,0.4785]
[1754813469300,0.9668,4179.5,4179.4,0.8939]
[1754813469492,0.9668,4179.5,4179.4,0.4154]
[1754813469697,0.4798,4179.7,4179.3,0.47851]
[1754813469891,1.3726,4179.5,4179.4,0.4154]
[1754813470095,0.62337523,4179.8,4179.4,0.4785]
[1754813470398,1.3726,4179.5,4179.4,0.8939]
[1754813470602,1.3726,4179.5,4179.4,1.3711]
[1754813470903,1.3726,4179.8,4179.7,0.4154]
[1754813471201,1.3726,4179.8,4179.5,0.47848]
[1754813471500,3.2078,4179.9,4179.6,0.89387]
[1754813471798,1.3726,4179.8,4179.7,0.8926]
[1754813472194,1.3726,4180.3,4180.2,0.47841]
[1754813472391,1.3726,4180.3,4180.2,1.37101]
[1754813472597,0.487,4180.3,4180.2,1.37101]
[1754813472800,0.487,4180.3,4180.2,1.88271]
[1754813474698,3.2078,4180.4,4180.3,0.9889]
[1754813474899,3.2078,4180.9,4180.5,0.8926]
[1754813475096,0.9668,4180.7,4180.6,0.95556]
[1754813475402,0.9668,4181.3,4181.2,0.9555]
[1754813475697,0.487,4181.3,4181.2,1.8826]
[1754813476094,1.3726,4181.2,4180.4,0.4154]
[1754813476293,1.3726,4181.8,4180.7,0.4772]
[1754813476495,1.3726,4181.9,4181.1,1.4043]
[1754813476703,1.3726,4181.9,4181.1,0.5117]
[1754813476997,1.3726,4181.8,4181.5,0.47825]
[1754813477298,0.9668,4181.8,4181.5,0.47826]
[1754813477602,3.2078,4182.0,4181.7,0.89363]
[1754813477897,0.47824,4181.7,4181.4,3.10115265]
[1754813478097,0.47823,4181.8,4181.4,3.51655265]
[1754813478306,0.9668,4181.5,4181.4,0.95547]
[1754813478505,0.9668,4181.5,4181.4,1.46717]
[1754813478698,0.487,4181.5,4181.4,1.46717]
[1754813478899,0.487,4181.5,4181.4,1.4043]
[1754813479299,0.4798,4181.8,4181.7,0.4154]
[1754813479499,0.8856,4181.9,4181.6,1.4043]
[1754813479798,1.36382,4181.9,4181.8,0.4154]
[1754813480000,1.85082,4181.9,4181.8,0.4154]
[1754813481004,1.44502,4181.9,4181.8,0.4154]
[1754813481204,1.85082,4181.9,4181.8,0.4154]
[1754813481597,1.44502,4181.9,4181.8,0.8926]
[1754813481802,1.85085,4181.6,4181.5,0.4154]
[1754813482005,2.78915,4181.6,4181.5,1.0266]
[1754813482203,2.78915,4181.6,4181.5,4.15937056]
[1754813482606,2.3109,4181.6,4181.5,4.47217056]
[1754813482804,1.19562,4181.7,4180.8,0.4772]
[1754813483000,1.19562,4181.7,4181.0,1.3394]
[1754813483001,2.3109,4181.1,4181.0,1.3394]
[1754813483399,2.3109,4181.1,4181.0,4.38197219]
[1754813483605,0.47835,4180.7,4180.5,3.2078]
[1754813483912,1.3726,4180.6,4180.5,3.2078]
[1754813484708,0.487,4180.8,4180.6,1.88267]
[1754813485007,0.9668,4180.8,4180.7,0.8926]
[1754813485203,0.47832,4181.0,4180.7,3.56986222]
[1754813485403,0.47835,4180.7,4180.5,3.2078]
[1754813485604,1.3726,4180.6,4180.5,3.2078]
[1754813486401,1.19578,4181.1,4180.1,18.67]
[1754813486402,1.3726,4180.2,4180.1,18.67]
[1754813486907,0.487,4180.2,4180.1,3.96552105]
[1754813487107,0.487,4180.2,4180.1,4.47722105]